bitfinex-derivatives/quotes_ETHF0:USTF0_20251005
["timestamp","ask_amount","ask_price","bid_price","bid_amount"]
[1759673998046,0.39556,4549.5,4549.4,0.78770308]
[1759673998252,1.25996,4549.5,4549.4,0.78770308]
[1759673999044,1.25996,4549.5,4549.4,1.00030308]
[1759673999250,1.25996,4549.5,4549.4,0.7379]
[1759673999552,1.25996,4549.5,4549.4,0.4292]
[1759674000652,1.13197,4549.4,4549.3,1.00770308]
[1759674000853,1.13197,4549.4,4549.3,0.22]
[1759674001447,1.13197,4549.4,4549.3,0.7413]
[1759674001652,1.13197,4549.4,4549.3,0.9579]
[1759674003652,1.13197,4549.4,4549.3,0.6492]
[1759674003849,1.13197,4549.4,4549.3,0.22]
[1759674004154,1.13197,4549.4,4549.3,0.4326]
[1759674005248,1.13197,4549.4,4549.3,0.22]
[1759674005547,1.13197,4549.4,4548.8,1.17958246]
[1759674005548,0.61472,4548.9,4548.8,0.78770308]
[1759674005853,1.13202,4548.8,4548.7,1.00770308]
[1759674006955,1.13202,4548.8,4548.7,0.22]
[1759674007154,0.82164,4548.6,4548.5,1.00030308]
[1759674007355,1.13204,4548.6,4548.5,0.78770308]
[1759674007550,1.26005,4548.5,4548.4,0.22]
[1759674007748,1.26005,4548.5,4548.4,0.4326]
[1759674012357,1.26005,4548.5,4548.4,0.22]
[1759674013863,1.42754,4548.5,4548.0,3.99550308]
[1759674014059,0.7364,4547.8,4547.7,1.61602308]
[1759674014267,0.7364,4547.8,4547.7,2.14132308]
[1759674014464,0.7364,4547.8,4547.7,1.74560308]
[1759674014758,0.7364,4547.8,4547.7,0.9579]
[1759674014963,0.7364,4547.8,4547.7,1.74395722]
[1759674015863,0.5295,4547.8,4547.7,1.74395722]
[1759674016258,0.5295,4547.8,4547.7,0.9579]
[1759674016660,0.3104,4548.8,4548.4,0.3087]
[1759674016967,0.22,4549.6,4548.8,0.39562]
[1759674017158,0.5295,4549.2,4549.1,0.7379]
[1759674017756,0.5295,4549.2,4549.1,0.9579]
[1759674018764,0.7364,4549.2,4549.1,0.9579]
[1759674022261,0.7364,4549.2,4549.1,0.7413]
[1759674022466,1.13202,4548.9,4548.8,0.99475722]
[1759674022667,1.13202,4548.9,4548.8,0.22]
[1759674024163,0.7364,4548.8,4548.7,4.21385722]
[1759674024972,0.7364,4548.8,4548.7,3.4278]
[1759674025365,0.7364,4548.8,4548.7,4.1749]
[1759674025366,0.5145,4548.8,4548.7,4.1749]
[1759674025762,0.95066,4549.5,4549.4,0.2087]
[1759674026268,0.95066,4549.5,4549.4,0.4303]
[1759674026569,1.25996,4549.5,4549.4,0.4303]
[1759674027471,1.25996,4549.5,4549.4,0.2087]
[1759674028067,0.3956,4549.1,4549.0,0.22]
[1759674028274,1.132,4549.1,4549.0,0.9671]
[1759674028475,1.132,4549.1,4549.0,0.4287]
[1759674029478,1.132,4549.1,4549.0,0.22]
[1759674031370,0.7364,4549.1,4548.9,0.78605722]
[1759674031576,1.26231,4549.0,4548.9,0.78605722]
[1759674031977,1.26231,4549.0,4548.9,0.99475722]
[1759674032484,1.14642,4548.9,4548.8,0.78605722]
[1759674035992,1.14642,4548.9,4548.8,0.82672]
[1759674038190,1.14642,4548.9,4548.8,1.13932]
[1759674038391,1.14642,4548.9,4548.8,0.4311]
[1759674038985,1.14642,4548.9,4548.8,0.2081]
[1759674039191,1.14642,4548.8,4548.7,1.00746251]
[1759674039691,1.14642,4548.8,4548.7,1.21556251]
[1759674042293,1.14642,4548.8,4548.7,0.4281]
[1759674044897,1.14642,4548.8,4548.7,1.21610701]
[1759674045293,1.14642,4548.8,4548.7,0.4281]
[1759674046798,1.14642,4548.8,4548.7,0.22]
[1759674047497,1.14642,4548.8,4548.7,0.4433]
[1759674051896,1.14763,4548.7,4548.6,1.40288246]
[1759674052095,1.14763,4548.7,4548.6,4.83068246]
[1759674052295,1.14763,4548.7,4548.6,4.60738246]
[1759674052599,1.14763,4548.7,4548.6,3.2078]
[1759674053197,0.82834,4548.6,4548.5,1.39958246]
[1759674053397,1.14764,4548.6,4548.5,0.22]
[1759674054699,1.14764,4548.6,4548.0,3.2078]
[1759674054700,0.39566,4548.4,4548.3,1.17958246]
[1759674054899,0.82838,4548.2,4548.1,1.39958246]
[1759674055099,1.14768,4548.2,4548.1,1.62288246]
[1759674056501,1.14768,4548.2,4548.1,0.4433]
[1759674061410,1.14768,4548.2,4548.1,0.22]
[1759674061912,1.14768,4548.2,4548.1,1.00824729]
[1759674063304,1.14768,4548.2,4548.1,0.78824729]
[1759674063507,0.96129,4548.0,4547.9,3.99604729]
[1759674063801,1.28059,4548.0,4547.9,3.99604729]
[1759674066311,1.28059,4548.0,4547.9,0.78824729]
[1759674066614,0.752,4547.8,4547.7,1.00824729]
[1759674066807,1.14771,4547.8,4547.7,1.56704729]
[1759674067009,0.39571,4547.8,4547.7,1.77154729]
[1759674070006,0.39571,4547.8,4547.7,2.16726729]
[1759674070412,0.39571,4547.8,4547.7,1.37902]
[1759674072018,0.39571,4547.8,4547.7,0.9833]
[1759674072219,0.39571,4547.8,4547.7,1.77154729]
[1759674072420,0.71501,4547.8,4547.7,1.77154729]
[1759674072924,0.39571,4547.8,4547.7,1.77154729]
[1759674074119,0.71501,4547.8,4547.7,1.77154729]
[1759674076818,0.71501,4547.8,4547.7,2.16726729]
[1759674077021,0.39571,4547.8,4547.7,2.16726729]
[1759674077417,0.39571,4547.9,4547.8,0.3957]
[1759674077619,0.71137,4548.3,4548.2,0.742]
[1759674077923,0.71137,4548.3,4548.2,4.1698]
[1759674078124,0.93227,4548.3,4548.2,4.1698]
[1759674078823,1.13767,4548.3,4548.2,4.1698]
[1759674079026,1.13767,4548.3,4548.2,3.8587]
[1759674079818,1.13767,4548.3,4548.2,4.1698]
[1759674080720,1.13767,4548.3,4548.2,0.962]
[1759674081818,0.93227,4548.3,4548.2,0.962]
[1759674083626,0.39567,4548.3,4548.2,1.74938814]
[1759674084118,0.39567,4548.3,4548.2,0.962]
[1759674084516,0.71137,4548.3,4548.2,4.1698]
[1759674085627,0.93227,4548.3,4548.2,4.1698]
[1759674086829,1.13767,4548.3,4548.2,3.8587]
[1759674087018,0.39568,4548.1,4548.0,1.17958246]
[1759674087222,1.13768,4548.1,4548.0,2.14158246]
[1759674087723,1.13768,4548.1,4548.0,1.83048246]
[1759674087927,1.13768,4548.1,4548.0,1.39958246]
[1759674088228,1.13768,4548.1,4548.0,1.61318246]
[1759674088429,1.13768,4548.1,4548.0,2.53727246]
[1759674089028,1.13768,4548.1,4548.0,2.14158246]
[1759674089230,1.13768,4548.1,4548.0,1.83048246]
[1759674089728,1.13768,4548.1,4548.0,2.00617246]
[1759674089930,1.13768,4548.1,4548.0,2.22617246]
[1759674090131,0.5366,4548.1,4548.0,2.53727246]
[1759674090430,0.93228,4548.1,4548.0,2.53727246]
[1759674093227,1.13768,4548.1,4548.0,1.83048246]
[1759674093429,1.25919,4548.0,4547.9,0.78885353]
[1759674093628,0.3957,4547.9,4547.8,0.78885353]
[1759674093828,0.39571,4547.8,4547.7,0.22]
[1759674094029,1.13231,4547.8,4547.7,0.4378]
[1759674094922,1.13231,4547.8,4547.7,1.75042254]
[1759674095126,1.13231,4547.8,4547.7,2.14614254]
[1759674095824,1.13231,4547.8,4547.7,1.75042254]
[1759674096832,1.13231,4547.8,4547.7,2.14614254]
[1759674098832,0.5277,4547.8,4547.7,2.14614254]
[1759674099132,0.92338,4548.2,4548.1,0.7415]
[1759674099526,1.13228,4548.2,4548.1,0.7415]
[1759674101136,0.92338,4548.2,4548.1,1.13718]
[1759674101436,0.92338,4548.2,4548.1,0.7415]
[1759674102032,1.13228,4548.2,4548.1,0.7415]
[1759674102336,1.13228,4548.2,4548.1,0.4291]
[1759674103735,1.13228,4548.2,4548.1,0.7415]
[1759674107336,0.92338,4548.2,4548.1,1.13718]
[1759674108739,1.14758,4548.2,4548.1,1.00660121]
[1759674111145,1.14758,4548.2,4548.1,1.52320121]
[1759674114942,1.14758,4548.2,4548.1,0.78880121]
[1759674115445,1.14758,4548.2,4548.1,1.00390121]
[1759674115743,1.14758,4548.2,4548.1,1.30960121]
[1759674115946,1.14758,4548.2,4548.1,1.52050121]
[1759674119148,0.5277,4548.2,4548.1,1.91618121]
[1759674119343,0.39568,4548.2,4548.1,1.91618121]
[1759674119543,0.70797,4548.3,4548.2,0.426]
[1759674119849,0.92587,4548.3,4548.2,1.74053128]
[1759674120844,1.15007,4548.3,4548.2,1.74053128]
[1759674121244,1.15007,4548.3,4548.2,1.00883128]
[1759674121440,1.15007,4548.3,4548.1,0.78883128]
[1759674121644,1.28019,4548.0,4547.9,5.51478246]
[1759674121843,0.5302,4548.0,4547.9,5.73478246]
[1759674122344,0.6579,4548.5,4548.4,0.7317]
[1759674122655,1.27775,4548.5,4548.4,0.7317]
[1759674123550,1.27775,4548.5,4548.4,0.426]
[1759674124345,0.5302,4548.5,4548.4,1.12736]
[1759674124547,0.3123,4548.9,4548.8,1.12732]
[1759674124850,0.7544,4549.3,4549.2,0.2151]
[1759674125446,1.14998,4549.3,4549.2,0.2151]
[1759674125642,0.39561,4549.0,4548.9,0.3057]
[1759674125845,1.28011,4549.0,4548.9,0.2151]
[1759674126046,0.61351,4548.9,4548.8,0.22]
[1759674126241,1.15002,4548.8,4548.7,0.78872754]
[1759674126448,0.39564,4548.6,4548.5,0.78872754]
[1759674126654,0.3123,4548.7,4548.3,0.22]
[1759674126655,0.83776,4548.4,4548.3,0.22]
[1759674126853,1.15006,4548.4,4548.3,0.22]
[1759674128249,1.15006,4548.4,4548.3,0.4351]
[1759674128650,1.15006,4548.4,4548.3,0.22]
[1759674129647,0.7544,4548.3,4548.2,0.78872754]
[1759674131151,0.7544,4548.3,4548.2,1.00382754]
[1759674131955,1.15007,4548.3,4548.2,1.00382754]
[1759674133448,1.15007,4548.3,4548.2,0.78872754]
[1759674134854,1.15007,4548.3,4548.2,0.2151]
[1759674136854,1.15007,4548.3,4548.2,0.7317]
[1759674142157,1.15007,4548.3,4548.2,1.52042754]
[1759674143460,0.92587,4548.3,4548.2,1.52042754]
[1759674144260,0.92587,4548.3,4548.2,1.91610754]
[1759674145057,0.92587,4548.3,4548.2,1.52042754]
[1759674145362,0.92587,4548.3,4548.2,0.7317]
[1759674145662,0.92587,4548.3,4548.2,1.12738]
[1759674149670,1.13057,4548.3,4548.2,1.12738]
[1759674149967,1.13057,4548.3,4548.2,0.7317]
[1759674151374,1.13057,4548.3,4548.2,1.12738]
[1759674153768,0.7349,4548.3,4548.2,1.12738]
[1759674153976,0.39557,4549.4,4548.9,0.7504]
[1759674154274,0.61387,4549.4,4549.3,0.7504]
[1759674154467,0.92147,4549.4,4549.3,0.9704]
[1759674154667,1.14697,4549.4,4549.3,0.9704]
[1759674154871,0.5259,4549.4,4549.3,0.9704]
[1759674155073,0.3076,4549.4,4549.3,0.9704]
[1759674155764,0.92145,4549.7,4549.6,0.7504]
[1759674155964,1.14695,4549.7,4549.6,0.9704]
[1759674156469,1.14695,4549.7,4549.6,1.36595]
[1759674156870,0.98874,4550.4,4549.7,0.4431]
[1759674157067,0.98874,4550.4,4549.8,0.3073]
[1759674157265,0.92143,4549.9,4549.8,0.7504]
[1759674157469,0.5259,4549.9,4549.8,1.36594]
[1759674158974,0.7514,4549.9,4549.8,0.9704]
[1759674159172,0.7514,4549.9,4549.8,0.6631]
[1759674161681,0.7514,4549.9,4549.8,0.9704]
[1759674163880,1.14693,4549.9,4549.8,0.9704]
[1759674164779,1.14693,4549.9,4549.8,1.36594]
[1759674165886,1.14693,4549.9,4549.8,0.9704]
[1759674166090,1.14693,4549.9,4549.8,0.6631]
[1759674166792,1.14693,4549.9,4549.8,0.4447]
[1759674167484,1.14693,4549.9,4549.8,0.84024]
[1759674167786,1.14693,4549.9,4549.8,1.38104]
[1759674170887,1.14693,4549.9,4549.8,0.6631]
[1759674172690,1.14693,4549.9,4549.8,0.9855]
[1759674173089,1.14693,4549.9,4549.8,0.6631]
[1759674173290,1.14693,4549.9,4549.8,0.9855]
[1759674173686,1.14693,4549.9,4549.8,0.6631]
[1759674174391,0.7514,4549.9,4549.8,0.9855]
[1759674174586,0.331,4550.2,4550.1,1.15501]
[1759674174890,0.9491,4550.2,4550.1,1.37501]
[1759674175084,0.5536,4550.2,4550.1,1.37501]
[1759674176092,0.331,4550.2,4550.1,1.37501]
[1759674176293,0.7265,4550.2,4550.1,1.37501]
[1759674176992,0.3955,4550.2,4550.1,1.37501]
[1759674177585,0.7265,4550.2,4550.1,1.37501]
[1759674178196,0.331,4550.2,4550.1,1.37501]
[1759674178695,0.7265,4550.2,4550.1,1.37501]
[1759674181192,0.9491,4550.2,4550.1,1.37501]
[1759674182295,1.1683,4550.2,4550.1,1.37501]
[1759674182491,0.9491,4550.2,4550.1,1.37501]
[1759674184196,0.9491,4550.2,4550.1,2.16405322]
[1759674185104,0.9491,4550.2,4550.1,1.37501]
[1759674185398,1.1683,4550.2,4550.1,1.37501]
[1759674185699,0.9491,4550.2,4550.1,1.37501]
[1759674186197,0.9491,4550.2,4550.1,0.22]
[1759674186198,1.1683,4550.2,4550.1,0.22]
[1759674186500,0.39555,4549.6,4549.5,3.99684322]
[1759674186703,1.16835,4549.6,4549.5,4.43794322]
[1759674187701,1.16835,4549.6,4549.5,3.99684322]
[1759674187903,1.16835,4549.6,4549.5,4.21684322]
[1759674188797,1.16835,4549.6,4549.5,4.43794322]
[1759674191304,1.16835,4549.6,4549.5,0.22]
[1759674191502,0.39557,4549.4,4549.3,0.78904322]
[1759674191702,1.16837,4549.4,4549.3,0.22]
[1759674192806,1.16837,4549.4,4549.3,0.4411]
[1759674193404,1.16837,4549.4,4549.3,0.22]
[1759674194203,1.16837,4549.4,4549.3,0.4411]
[1759674194596,1.16837,4549.4,4549.3,0.22]
[1759674195401,1.16837,4549.4,4549.3,1.00867755]
[1759674195708,1.16837,4549.4,4549.3,1.22977755]
[1759674196799,1.16837,4549.4,4549.3,1.00867755]
[1759674197407,1.16837,4549.4,4549.3,1.22977755]
[1759674199610,1.16837,4549.4,4549.3,0.78867755]
[1759674199805,1.16837,4549.4,4549.2,0.22]
[1759674199806,0.83948,4549.3,4549.2,0.22]
[1759674200111,1.16078,4549.3,4549.2,0.9881]
[1759674201407,1.16078,4549.3,4549.2,0.4385]
[1759674204711,1.16078,4549.3,4549.2,0.22]
[1759674205214,1.16078,4549.3,4549.2,0.4385]
[1759674205513,1.16078,4549.3,4549.2,0.9881]
[1759674206015,1.16078,4549.3,4549.2,1.38369]
[1759674206615,1.16078,4549.3,4549.2,0.9881]
[1759674206910,1.16078,4549.3,4549.2,0.4385]
[1759674207216,1.16078,4549.3,4549.2,0.7676]
[1759674207411,1.16078,4549.3,4549.2,0.9881]
[1759674208110,1.16078,4549.3,4549.2,0.659]
[1759674208315,1.16078,4549.3,4549.2,0.22]
[1759674211014,1.16078,4549.3,4548.9,3.60342]
[1759674211015,1.1608,4549.1,4548.9,0.78867755]
[1759674211221,0.4439,4548.8,4548.6,0.78867755]
[1759674211416,1.16084,4548.6,4548.5,0.22]
[1759674223822,0.39566,4548.4,4548.3,3.2078]
[1759674224026,1.1387,4547.9,4547.8,3.2078]
[1759674224215,1.1387,4547.9,4547.8,3.6525]
[1759674225021,1.1387,4547.9,4547.8,0.4447]
[1759674225318,1.1387,4547.9,4547.6,1.10487755]
[1759674225319,0.1288,4547.5,4547.4,0.00228423]
[1759674225523,1.26754,4547.5,4547.4,0.44698423]
[1759674225924,1.26754,4547.5,4547.4,0.76318423]
[1759674226325,0.92714,4547.5,4547.4,1.37603423]
[1759674228528,0.70914,4547.5,4547.4,1.37603423]
[1759674229427,0.91324,4547.5,4547.4,1.37603423]
[1759674230328,0.91324,4547.5,4547.4,0.98028423]
[1759674231830,1.25294,4547.5,4547.4,0.98028423]
[1759674233133,0.9162,4547.9,4547.8,0.7665]
[1759674233431,1.1282,4547.9,4547.8,0.7665]
[1759674233933,1.1282,4547.9,4547.8,0.4351]
[1759674234229,1.1282,4547.9,4547.8,0.9865]
[1759674234433,0.72754,4547.5,4547.4,0.83312423]
[1759674234622,1.04394,4547.5,4547.4,1.38452423]
[1759674235029,0.91624,4547.5,4547.4,2.17320178]
[1759674235230,0.91624,4547.5,4547.4,1.38452423]
[1759674235730,0.3164,4547.8,4547.4,0.98878423]
[1759674235936,0.39572,4547.7,4547.6,1.16222]
[1759674236136,0.39572,4547.7,4547.6,1.38222]
[1759674236342,0.39572,4547.7,4547.6,2.17019551]
[1759674236938,0.71212,4547.7,4547.6,2.17019551]
[1759674237139,0.71212,4547.7,4547.6,1.38222]
[1759674237433,0.71212,4547.7,4547.6,2.17019551]
[1759674239244,0.71212,4547.7,4547.6,1.38222]
[1759674239637,0.3164,4547.7,4547.6,1.38222]
[1759674239834,0.3164,4547.7,4547.6,2.56578483]
[1759674240040,0.3164,4547.7,4547.6,1.38222]
[1759674240243,0.3164,4547.7,4547.6,2.56578483]
[1759674241250,0.3164,4547.7,4547.6,2.17006483]
[1759674241251,0.71212,4547.7,4547.6,2.17006483]
[1759674241545,0.91622,4547.7,4547.6,2.17006483]
[1759674241740,0.91622,4547.7,4547.6,2.56579483]
[1759674242341,0.91622,4547.7,4547.6,1.38223]
[1759674244544,1.12822,4547.7,4547.6,0.6551]
[1759674244746,1.12822,4547.7,4547.6,1.61487447]
[1759674245050,1.12823,4547.6,4547.5,1.18437447]
[1759674245241,1.12823,4547.6,4547.5,1.00974619]
[1759674246149,1.12823,4547.6,4547.5,1.22024619]
[1759674246447,1.12823,4547.6,4547.5,1.00974619]
[1759674249649,1.12823,4547.6,4547.5,1.40548619]
[1759674249952,1.12823,4547.6,4547.5,1.61598619]
[1759674250546,1.12823,4547.6,4547.5,1.38224]
[1759674251146,0.7325,4547.6,4547.5,1.38224]
[1759674251753,0.5205,4547.9,4547.8,1.16221]
[1759674251953,0.5205,4547.9,4547.8,1.38221]
[1759674252152,0.9162,4547.9,4547.8,1.38221]
[1759674252953,0.9162,4547.9,4547.8,2.17196819]
[1759674254050,0.59977,4548.3,4548.2,0.4351]
[1759674254352,1.12817,4548.3,4548.2,1.77635484]
[1759674254547,1.12817,4548.3,4548.2,1.44495484]
[1759674254752,1.12817,4548.3,4548.2,1.00985484]
[1759674255758,1.12817,4548.3,4548.2,1.61603484]
[1759674259063,0.7325,4548.3,4548.2,2.13293484]
[1759674259660,1.12817,4548.3,4548.2,2.13293484]
[1759674259855,1.12817,4548.3,4548.2,1.34308]
[1759674261861,1.12817,4548.3,4548.2,0.9474]
[1759674262059,1.12817,4548.3,4548.2,1.34308]
[1759674262360,1.12817,4548.3,4548.2,1.03288]
[1759674262557,1.12817,4548.3,4548.2,1.34308]
[1759674263164,1.12817,4548.3,4548.2,1.03288]
[1759674264864,0.7325,4548.3,4548.2,1.34308]
[1759674265761,0.5205,4548.3,4548.2,1.34308]
[1759674265964,0.2111,4548.8,4548.7,1.12783]
[1759674266162,0.2111,4549.0,4548.9,0.2067]
[1759674266362,0.93931,4549.0,4548.9,1.12782]
[1759674266761,3.2078,4549.3,4548.9,1.12782]
[1759674266762,3.2078,4549.3,4549.2,0.39559]
[1759674266965,0.1277,4549.5,4549.4,0.39557]
[1759674267166,0.3388,4549.5,4549.4,1.12777]
[1759674267366,0.6714,4549.5,4549.4,1.12777]
[1759674269766,0.5437,4549.5,4549.4,1.12777]
[1759674270968,1.27612,4550.0,4549.9,1.12773]
[1759674271368,0.8806,4550.0,4549.9,1.12773]
[1759674271772,0.7529,4550.0,4549.9,1.12773]
[1759674272270,0.5437,4550.0,4549.9,1.12773]
[1759674273160,0.39829347,4550.3,4550.2,0.3955]
[1759674273365,0.21029347,4550.3,4550.2,1.133]
[1759674273771,0.76539347,4550.3,4550.2,1.133]
[1759674274669,0.7626,4550.1,4550.0,0.39552]
[1759674274970,0.7626,4550.1,4550.0,0.59882]
[1759674276061,0.7626,4550.1,4550.0,1.13302]
[1759674276771,0.3374,4550.1,4550.0,1.13302]
[1759674276967,0.5449,4550.1,4550.0,1.35302]
[1759674282974,0.3374,4550.1,4550.0,1.35302]
[1759674283470,0.5449,4550.1,4550.0,1.35302]
[1759674283972,0.3374,4550.1,4550.0,1.35302]
[1759674284472,0.5449,4550.1,4550.0,1.35302]
[1759674287977,1.15811,4550.1,4550.0,1.35302]
[1759674288679,0.94041,4550.1,4550.0,1.35302]
[1759674289282,0.3374,4550.1,4550.0,1.35302]
[1759674289484,0.33359347,4550.3,4550.2,1.1537]
[1759674289677,0.72908347,4550.3,4550.2,1.1537]
[1759674290378,0.94518347,4550.3,4550.2,1.1537]
[1759674290579,0.54969347,4550.3,4550.2,1.1537]
[1759674290880,0.00279347,4550.3,4550.2,1.1537]
[1759674291190,0.94518347,4550.3,4550.2,1.1537]
[1759674291376,1.15918347,4550.3,4550.2,0.828]
[1759674291582,1.15918347,4550.3,4550.2,1.3737]
[1759674291777,0.94518347,4550.3,4550.2,1.3737]
[1759674293680,1.15918347,4550.3,4550.2,1.3737]
[1759674299183,1.15918347,4550.3,4550.2,1.0372]
[1759674299380,1.15918347,4550.3,4550.2,0.78909702]
[1759674299584,1.15918347,4550.3,4550.2,0.22]
[1759674301879,1.15918347,4550.3,4550.2,0.4325]
[1759674303387,1.15918347,4550.3,4550.2,1.1645]
[1759674303691,1.15918347,4550.3,4550.2,1.3737]
[1759674304084,1.15918347,4550.3,4550.2,1.0372]
[1759674305094,1.15918347,4550.3,4550.2,1.3737]
[1759674308998,1.15918347,4550.3,4550.2,1.0372]
[1759674309190,1.15918347,4550.3,4550.2,0.6417]
[1759674310597,1.15918347,4550.3,4550.2,1.0372]
[1759674311399,1.15918347,4550.3,4550.2,0.6417]
[1759674312092,4.36698347,4550.3,4550.2,0.22]
[1759674312293,1.1564,4550.2,4550.1,0.78909702]
[1759674315792,1.1564,4550.2,4550.1,1.54729702]
[1759674316098,0.3955,4550.2,4550.1,1.94280702]
[1759674316298,0.00279347,4550.3,4550.2,0.3955]
[1759674316493,0.33359347,4550.3,4550.2,1.1537]
[1759674316697,0.00279347,4550.3,4550.2,2.16279702]
[1759674317199,0.00279347,4550.3,4550.2,1.3737]
[1759674319601,0.39828347,4550.3,4550.2,1.3737]
[1759674321411,0.00279347,4550.3,4550.2,1.3737]
[1759674321812,0.39828347,4550.3,4550.2,1.3737]
[1759674323911,0.72468347,4550.3,4550.2,1.3737]
[1759674325118,0.72468347,4550.3,4550.2,2.16219682]
[1759674326315,0.32919347,4550.3,4550.2,5.36999682]
[1759674326516,0.72468347,4550.3,4550.2,5.36999682]
[1759674326716,0.39828347,4550.3,4550.2,4.5815]
[1759674326915,0.39828347,4550.3,4550.2,5.36997002]
[1759674327114,0.72468347,4550.3,4550.2,5.36997002]
[1759674327316,0.00279347,4550.3,4550.2,5.36997002]
[1759674327618,0.00279347,4550.3,4550.2,4.5815]
[1759674328910,0.32919347,4550.3,4550.2,4.5815]
[1759674331117,0.00279347,4550.3,4550.2,4.5815]
[1759674331719,0.32919347,4550.3,4550.2,4.5815]
[1759674334830,0.00279347,4550.3,4550.2,4.5815]
[1759674335031,0.33399347,4550.3,4550.2,5.76587447]
[1759674335226,0.33399347,4550.3,4550.2,4.5815]
[1759674335627,0.00279347,4550.3,4550.2,4.5815]
[1759674335827,0.33399347,4550.3,4550.2,4.5815]
[1759674336632,0.33399347,4550.3,4550.2,5.76587447]
[1759674336937,0.33399347,4550.3,4550.2,4.5815]
[1759674339844,0.33399347,4550.3,4550.2,1.3737]
[1759674340238,0.00279347,4550.3,4550.2,2.55807447]
[1759674343335,0.00279347,4550.3,4550.2,1.3737]
[1759674347134,0.00279347,4550.3,4550.2,4.5815]
[1759674351244,0.32289347,4550.3,4550.2,4.5815]
[1759674351445,0.00279347,4550.3,4550.2,4.5815]
[1759674356555,0.75939347,4550.3,4550.2,4.5815]
[1759674357056,0.75939347,4550.3,4550.2,5.76398898]
[1759674357955,1.15488347,4550.3,4550.2,5.76398898]
[1759674358254,0.75939347,4550.3,4550.2,5.76398898]
[1759674359956,1.15488347,4550.3,4550.2,5.76398898]
[1759674360452,1.15488347,4550.3,4550.2,5.42748898]
[1759674361047,1.15488347,4550.3,4550.2,0.4217]
[1759674361254,1.15488347,4550.3,4550.2,0.4325]
[1759674361556,1.15488347,4550.3,4550.2,0.22]
[1759674365248,0.3955,4550.2,4550.1,0.78838177]
[1759674365455,1.1521,4550.2,4550.1,0.78838177]
[1759674371058,1.1521,4550.2,4550.1,1.18389177]
[1759674371363,1.1521,4550.2,4550.1,0.78838177]
[1759674371563,1.1521,4550.2,4550.1,1.18389177]
[1759674372361,1.1521,4550.2,4550.1,0.39551]
[1759674374365,1.1521,4550.2,4550.1,0.60681]
[1759674374566,1.1521,4550.2,4550.1,1.39519177]
[1759674375364,1.1521,4550.2,4550.1,1.95039177]
[1759674375554,0.9334,4550.2,4550.1,1.95039177]
[1759674375762,0.7156,4550.2,4550.1,1.95039177]
[1759674376159,0.7156,4550.2,4550.1,1.16201]
[1759674376664,0.9334,4550.2,4550.1,1.16201]
[1759674380368,0.9334,4550.2,4550.1,0.7665]
[1759674380564,0.9334,4550.2,4550.1,1.16201]
[1759674381065,0.53022,4550.0,4549.9,1.40248898]
[1759674381266,1.28222,4550.0,4549.9,1.60988898]
[1759674381769,1.28222,4550.0,4549.9,2.14868898]
[1759674381968,1.28222,4550.0,4549.9,1.60988898]
[1759674382271,1.28222,4550.0,4549.9,0.4274]
[1759674385270,1.28222,4550.0,4549.8,1.40248898]
[1759674385271,1.14753,4549.9,4549.8,1.40248898]
[1759674385575,1.14753,4549.9,4549.8,1.60988898]
[1759674386064,1.14753,4549.9,4549.8,2.00542898]
[1759674386471,0.93113,4549.9,4549.8,2.54422898]
[1759674388676,0.3312,4549.9,4549.8,2.54422898]
[1759674389582,0.72673,4549.9,4549.8,2.54422898]
[1759674389781,0.93113,4549.9,4549.8,2.54422898]
[1759674390284,0.39553,4549.9,4549.8,2.54422898]
[1759674391277,0.72673,4549.9,4549.8,2.54422898]
[1759674392986,0.39553,4549.9,4549.8,2.54422898]
[1759674393788,0.5422,4550.2,4550.1,0.7199]
[1759674394085,0.9377,4550.2,4550.1,1.72830904]
[1759674394587,1.1587,4550.2,4550.1,1.72830904]
[1759674396990,1.1587,4550.2,4550.1,1.00840904]
[1759674397187,1.15871,4550.1,4550.0,0.78840904]
[1759674398086,1.15871,4550.1,4550.0,0.99540904]
[1759674398390,1.15871,4550.1,4550.0,0.7199]
[1759674400591,1.15871,4550.1,4550.0,1.50840195]
[1759674402192,1.15871,4550.1,4550.0,0.7199]
[1759674402492,1.15871,4550.1,4550.0,1.50841889]
[1759674402793,1.15871,4550.1,4550.0,0.7199]
[1759674405194,1.15871,4550.1,4550.0,1.50844295]
[1759674405590,1.15871,4550.1,4550.0,0.7199]
[1759674405791,1.15871,4550.1,4550.0,1.50844856]
[1759674405992,1.15871,4550.1,4550.0,1.90396856]
[1759674407195,1.15871,4550.1,4550.0,1.11542]
[1759674407399,1.15871,4550.1,4550.0,0.7199]
[1759674408295,1.15871,4550.1,4550.0,1.11542]
[1759674411200,0.00279347,4550.3,4550.2,1.1514]
[1759674411501,0.00279347,4550.3,4550.2,2.55388898]
[1759674412092,0.93618347,4550.3,4550.2,2.55388898]
[1759674412292,0.93618347,4550.3,4550.2,1.3714]
[1759674413503,1.14608347,4550.3,4550.2,1.0437]
[1759674413701,1.14608347,4550.3,4550.2,1.3714]
[1759674414104,1.14608347,4550.3,4550.2,0.6482]
[1759674414801,1.14608347,4550.3,4550.2,1.0437]
[1759674416297,1.14608347,4550.3,4550.2,1.83191914]
[1759674416602,1.14608347,4550.3,4550.2,2.15961914]
[1759674416798,1.14608347,4550.3,4550.2,1.76411914]
[1759674417905,1.14608347,4550.3,4550.2,2.15961914]
[1759674418306,1.14608347,4550.3,4550.2,1.76411914]
[1759674418506,1.14608347,4550.3,4550.2,0.99131914]
[1759674419405,1.14608347,4550.3,4550.2,1.54411914]
[1759674419804,1.14608347,4550.3,4550.2,1.93961914]
[1759674421307,1.14608347,4550.3,4550.2,0.99131914]
[1759674422108,1.14608347,4550.3,4550.2,0.5986]
[1759674422411,0.93618347,4550.3,4550.2,1.1514]
[1759674422702,0.54069347,4550.3,4550.2,1.1514]
[1759674423298,0.75059347,4550.3,4550.2,1.1514]